bitfinex/quotes_ETHUSD_20230117
["timestamp","ask_amount","ask_price","bid_price","bid_amount"]
[1673991120147,43.19107292,1580.1,1580.0,0.14007716]
[1673991120752,42.19107292,1580.1,1580.0,0.14007716]
[1673991120963,44.11696489,1580.1,1580.0,0.14007716]
[1673991121453,41.11696489,1580.1,1580.0,0.14007716]
[1673991121589,44.11696489,1580.1,1580.0,0.14007716]
[1673991122287,41.11696489,1580.1,1580.0,0.14007716]
[1673991124268,41.11696489,1580.1,1580.0,0.04007716]
[1673991124450,3.10243047,1580.0,1579.7,0.15872403]
[1673991124800,28.43466407,1579.9,1579.7,0.15872403]
[1673991125016,23.53835407,1579.8,1579.7,0.15872403]
[1673991125225,23.63435407,1579.8,1579.7,0.15872403]
[1673991125461,23.64145931,1579.8,1579.7,0.15872403]
[1673991125638,29.5870124,1579.8,1579.7,0.15872403]
[1673991127126,31.89275413,1579.8,1579.7,0.15872403]
[1673991127312,38.54575413,1579.8,1579.7,4.03e-06]
[1673991127491,44.40946914,1579.8,1579.6,1.03e-06]
[1673991127696,44.40946914,1579.8,1579.5,1.22808723]
[1673991127697,20.91038032,1579.7,1579.5,1.22808723]
[1673991127926,28.43946407,1579.6,1579.5,1.22808723]
[1673991128158,33.6112058,1579.6,1579.5,1.22808723]
[1673991128489,12.66302,1579.4,1579.2,0.16069751]
[1673991128643,22.11235407,1579.3,1579.2,0.16069751]
[1673991129017,25.06234048,1579.3,1579.2,0.16069751]
[1673991129326,22.20835407,1579.3,1579.2,0.16069751]
[1673991130155,25.20835407,1579.3,1579.2,0.16069751]
[1673991131164,22.20835407,1579.3,1579.2,0.16069751]
[1673991131376,22.21545931,1579.3,1579.2,0.16069751]
[1673991131604,25.21545931,1579.3,1579.2,0.16069751]
[1673991131829,29.17935624,1579.3,1579.2,0.16069751]
[1673991132231,37.49035624,1579.3,1579.2,0.16069751]
[1673991132456,41.50122578,1579.3,1579.0,0.22523678]
[1673991132649,36.53650407,1579.1,1579.0,0.22523678]
[1673991132894,35.47092958,1579.1,1579.0,0.22523678]
[1673991133739,35.47092958,1579.1,1579.0,0.12523678]
[1673991134107,42.12392958,1579.1,1579.0,0.12523678]
[1673991134325,42.35392958,1579.1,1579.0,0.12523678]
[1673991134579,35.47092958,1579.1,1579.0,0.12523678]
[1673991134741,34.03492958,1579.1,1579.0,0.12523678]
[1673991135785,40.68792958,1579.1,1579.0,0.12523678]
[1673991135996,42.35692958,1579.1,1579.0,0.12523678]
[1673991136474,43.16758675,1579.1,1579.0,0.12523678]
[1673991136629,43.80432848,1579.1,1579.0,0.12523678]
[1673991136845,0.01945334,1578.9,1578.5,0.6240053]
[1673991137082,25.33728,1578.7,1578.5,0.6240053]
[1673991137295,22.12078407,1578.6,1578.5,0.6240053]
[1673991137467,6.43072,1578.6,1578.5,0.6240053]
[1673991137677,0.096,1578.6,1578.5,0.5240053]
[1673991137933,12.76486,1578.7,1578.5,0.5240053]
[1673991138254,9.54694407,1578.7,1578.5,1.9630053]
[1673991139355,0.096,1578.7,1578.6,1.439]
[1673991139566,0.096,1578.8,1578.6,14.10844]
[1673991139826,0.01945334,1578.9,1578.7,1.426]
[1673991140146,0.01945334,1578.9,1578.8,1.427]
[1673991140519,0.01945334,1578.9,1578.8,7.90362]
[1673991140718,0.01945334,1578.9,1578.8,7.91392458]
[1673991141189,0.01945334,1578.9,1578.8,1.53000458]
[1673991141421,0.01945334,1578.9,1578.8,1.52586437]
[1673991143049,0.01945334,1578.9,1578.8,1.20916437]
[1673991143685,0.01945334,1578.9,1578.8,2.64816437]
[1673991146093,0.01945334,1578.9,1578.8,1.44516437]
[1673991146310,0.01945334,1578.9,1578.6,22.26114021]
[1673991146311,6.35297334,1578.9,1578.6,22.26114021]
[1673991146548,12.78249334,1578.9,1578.6,22.20114021]
[1673991146758,14.69408167,1578.9,1578.6,22.20114021]
[1673991147101,19.00296,1578.7,1578.6,20.77614021]
[1673991147306,19.09896,1578.7,1578.6,12.78274021]
[1673991147620,19.09896,1578.7,1578.6,0.00414021]
[1673991147621,22.21558407,1578.7,1578.6,0.00414021]
[1673991147770,22.21558407,1578.7,1578.5,0.5240053]
[1673991157338,19.09896,1578.7,1578.5,2.25988113]
[1673991157548,0.096,1578.7,1578.6,2.867]
[1673991157801,0.077,1578.7,1578.6,9.20172]
[1673991158022,6.44897334,1578.9,1578.6,9.20586021]
[1673991158181,6.44897334,1578.9,1578.8,1.427]
[1673991159498,0.11545334,1578.9,1578.8,1.427]
[1673991159657,0.01945334,1578.9,1578.8,1.6697]
[1673991159858,0.01945334,1578.9,1578.8,14.33754]
[1673991160102,0.01945334,1578.9,1578.8,25.11460021]
[1673991160316,0.01945334,1578.9,1578.8,28.53296936]
[1673991160960,0.01945334,1578.9,1578.8,28.9968908]
[1673991161168,0.01945334,1578.9,1578.8,28.53296936]
[1673991161380,0.01945334,1578.9,1578.8,28.46122428]
[1673991161593,0.01945334,1578.9,1578.8,28.53296348]
[1673991161829,0.01945334,1578.9,1578.8,25.34460021]
[1673991162262,0.0156747,1578.9,1578.8,25.34460021]
[1673991162782,0.0156747,1578.9,1578.8,17.57168021]
[1673991162996,0.0156747,1578.9,1578.8,10.76506021]
[1673991163853,0.0156747,1578.9,1578.8,4.42914021]
[1673991164046,0.0156747,1578.9,1578.8,10.76092]
[1673991164194,0.0156747,1578.9,1578.8,10.76506021]
[1673991164633,0.0156747,1578.9,1578.8,23.50484335]
[1673991164886,0.0156747,1578.9,1578.8,26.54118923]
[1673991165668,0.0156747,1578.9,1578.8,26.77118923]
[1673991165936,0.0156747,1578.9,1578.8,27.23575026]
[1673991166674,0.0156747,1578.9,1578.8,27.89876799]
[1673991167140,0.0156747,1578.9,1578.8,27.90493236]
[1673991167794,0.0156747,1578.9,1578.8,29.34393236]
[1673991168209,0.0156747,1578.9,1578.8,32.46055643]
[1673991168484,0.0156747,1578.9,1578.8,32.78971198]
[1673991169211,0.0006747,1578.9,1578.8,36.92645371]
[1673991169367,0.0006747,1578.9,1578.8,33.75941655]
[1673991169578,0.0006747,1578.9,1578.8,33.42790902]
[1673991170044,0.0006747,1578.9,1578.8,34.75304514]
[1673991170468,0.0006747,1578.9,1578.8,38.25304514]
[1673991170842,0.0006747,1578.9,1578.8,34.75272376]
[1673991172106,0.0006747,1578.9,1578.8,30.10646388]
[1673991172314,0.0006747,1578.9,1578.8,29.11296989]
[1673991172660,0.0006747,1578.9,1578.8,23.5473536]
[1673991172974,0.0006747,1578.9,1578.8,20.51100772]
[1673991174360,0.0006747,1578.9,1578.8,23.51100772]
[1673991175246,0.0006747,1578.9,1578.8,17.17708772]
[1673991175393,0.0006747,1578.9,1578.8,17.10514458]
[1673991175610,0.0006747,1578.9,1578.8,3.00414021]
[1673991175819,0.63405617,1578.9,1578.7,3.06414021]
[1673991176063,0.63405617,1578.9,1578.6,28.28963263]
[1673991176271,0.63405617,1578.9,1578.6,28.22963263]
[1673991176821,0.63405617,1578.9,1578.6,20.01563263]
[1673991176991,0.63405617,1578.9,1578.6,19.55068021]
[1673991178064,0.63405617,1578.9,1578.6,20.01563263]
[1673991179617,0.0006747,1578.9,1578.6,26.35035263]
[1673991179833,0.0006747,1578.9,1578.7,0.07805664]
[1673991180058,0.0006747,1578.9,1578.8,6.33392]
[1673991180271,0.0006747,1578.9,1578.8,6.33806021]
[1673991183190,0.0006747,1578.9,1578.8,1.20714021]
[1673991183519,0.0006747,1578.9,1578.8,1.203]
[1673991183674,0.0006747,1578.9,1578.7,1.50314021]
[1673991183675,6.3341947,1578.9,1578.7,1.50314021]
[1673991184024,6.3341947,1578.9,1578.6,19.54651]
[1673991184025,20.36469469,1578.9,1578.6,11.84814021]
[1673991184217,20.36469469,1578.9,1578.6,11.78814021]
[1673991185967,14.03117469,1578.9,1578.6,11.78814021]
[1673991186386,14.03117469,1578.9,1578.6,18.12284021]
[1673991186600,14.03117469,1578.9,1578.6,25.89656021]
[1673991186601,0.0966747,1578.9,1578.6,25.89656021]
[1673991186933,0.0006747,1578.9,1578.8,6.33392]
[1673991187280,0.0006747,1578.9,1578.8,6.33806021]
[1673991187492,0.0006747,1578.9,1578.8,1.20714021]
[1673991187731,0.0006747,1578.9,1578.8,1.203]
[1673991189737,23.34685877,1578.9,1578.7,0.06414021]
[1673991189910,3.76068588,1578.8,1578.6,11.78814021]
[1673991190120,19.00296,1578.7,1578.6,11.78814021]
[1673991190463,19.09896,1578.7,1578.6,11.78814021]
[1673991190793,19.09896,1578.7,1578.6,0.00414021]
[1673991191119,19.09896,1578.7,1578.5,0.5240053]
[1673991191120,24.50225918,1578.7,1578.5,0.5240053]
[1673991191259,24.50225918,1578.7,1578.2,0.91128805]
[1673991191260,4.11662407,1578.6,1578.2,0.18509258]
[1673991191583,4.11662407,1578.6,1578.1,0.03]
[1673991191584,12.67223,1578.3,1578.1,0.03]
[1673991191795,15.88485407,1578.3,1578.1,0.03]
[1673991192217,0.096,1578.3,1578.1,0.03]
[1673991192433,6.33598,1578.3,1578.1,0.03]
[1673991192638,6.43198,1578.3,1578.1,0.03]
[1673991193084,3.11662407,1578.2,1578.1,0.03]
[1673991193257,15.78928407,1578.2,1578.1,0.03]
[1673991193606,15.88528407,1578.2,1578.1,0.03]
[1673991194009,0.096,1578.2,1578.1,1.233]
[1673991194309,0.096,1578.3,1578.1,1.233]
[1673991194561,6.33587,1578.4,1578.1,1.233]
[1673991194562,0.096,1578.4,1578.1,1.233]
[1673991194881,14.41551,1578.5,1578.1,1.233]
[1673991195040,16.728442,1578.5,1578.1,1.233]
[1673991195498,16.728442,1578.5,1578.1,13.7626]
[1673991195716,23.063852,1578.5,1578.1,13.76674021]
[1673991197476,23.063852,1578.5,1578.1,13.77290731]
[1673991198021,29.399262,1578.5,1578.1,13.77290731]
[1673991198236,2.9399262,1578.4,1578.1,13.77290731]
[1673991198429,12.67186,1578.3,1578.1,12.56990731]
[1673991198642,6.43193,1578.3,1578.2,1.0]
[1673991198845,0.096,1578.3,1578.2,1.0]
[1673991199191,12.67178,1578.4,1578.2,1.0]
[1673991199192,12.76778,1578.4,1578.2,1.0]
[1673991200435,12.76778,1578.4,1578.1,12.62990731]
[1673991200628,19.10367,1578.4,1578.1,12.56990731]
[1673991200843,19.10367,1578.4,1578.1,13.99876869]
[1673991202034,19.10367,1578.4,1578.1,13.94876869]
[1673991204199,19.10367,1578.4,1578.1,12.51990731]
[1673991206571,19.10367,1578.4,1578.1,12.51990731]
[1673991207374,19.10367,1578.4,1578.1,12.51374021]
[1673991207703,25.34532,1578.2,1578.1,0.00414021]
[1673991207862,25.34532,1578.2,1578.1,0.002]
[1673991207863,25.42432,1578.2,1578.1,0.002]
[1673991208067,25.44132,1578.2,1578.0,0.21970648]
[1673991208279,28.29711441,1578.2,1578.0,0.21970648]
[1673991209506,25.44132,1578.2,1578.0,0.21970648]
[1673991209809,19.10499,1578.2,1578.0,0.21970648]
[1673991212551,19.11209524,1578.2,1578.0,0.21970648]
[1673991212694,19.10499,1578.2,1578.0,0.21970648]
[1673991213793,12.76866,1578.2,1578.0,0.21970648]
[1673991214005,12.76866,1578.2,1578.0,1.83302269]
[1673991214965,19.10499,1578.2,1578.0,1.83302269]
[1673991215140,19.10499,1578.2,1578.0,0.21970648]
[1673991217261,22.22161407,1578.2,1578.0,0.21970648]
[1673991218476,3.11662407,1578.1,1578.0,0.21970648]
[1673991218651,22.12681407,1578.1,1578.0,0.21970648]
[1673991218835,22.22281407,1578.1,1578.0,0.21970648]
[1673991219045,25.07872848,1578.1,1578.0,0.21970648]
[1673991220950,19.10619,1578.1,1578.0,1.42270648]
[1673991221163,12.76946,1578.1,1578.0,1.42270648]
[1673991222314,6.43273,1578.1,1578.0,1.42270648]
[1673991222524,0.096,1578.1,1578.0,1.42270648]
[1673991222734,0.096,1578.1,1578.0,2.86170648]
[1673991222997,0.096,1578.3,1578.0,25.69891997]
[1673991223203,0.096,1578.4,1578.1,4.426]
[1673991223374,12.76652,1578.5,1578.1,4.426]
[1673991223945,12.76652,1578.5,1578.1,5.426]
[1673991224092,12.76652,1578.5,1578.1,4.43014021]
[1673991224302,12.76652,1578.5,1578.2,0.44301402]
[1673991225300,12.76652,1578.5,1578.2,0.45694662]
[1673991226032,6.42859317,1578.5,1578.2,1.89594662]
[1673991227259,0.096,1578.5,1578.2,9.23223662]
[1673991227453,19.106783,1578.6,1578.2,8.23637683]
[1673991227662,0.101753,1578.6,1578.5,1.439]
[1673991227940,0.005753,1578.6,1578.5,1.439]
[1673991228334,0.005753,1578.6,1578.5,1.4529326]
[1673991234753,0.005753,1578.6,1578.5,2.4459326]
[1673991238418,0.005753,1578.6,1578.5,8.7810526]
[1673991238633,0.005753,1578.6,1578.5,12.32378817]
[1673991240689,0.03417991,1579.0,1578.6,0.005]
[1673991240900,0.03417991,1579.0,1578.7,3.11662407]
[1673991241048,0.03417991,1579.0,1578.8,6.2474733]
[1673991241262,0.03417991,1579.0,1578.9,3.34662407]
[1673991241533,0.03417991,1579.0,1578.9,25.9971931]
[1673991241841,0.03417991,1579.0,1578.9,26.01133331]
[1673991242951,0.005753,1579.1,1578.9,33.30107504]
[1673991243158,0.005753,1579.1,1579.0,19.81823378]
[1673991243372,0.005753,1579.1,1579.0,28.96360045]
[1673991243583,0.005753,1579.1,1579.0,29.61427478]
[1673991244057,0.03417991,1579.3,1579.1,1.00301886]
[1673991244207,0.03417991,1579.3,1579.2,37.23718407]
[1673991244420,0.03417991,1579.3,1579.2,40.88806601]
[1673991244666,0.03417991,1579.3,1579.2,45.02718675]
[1673991245514,0.04175041,1579.4,1579.3,13.66382]
[1673991245738,0.04175041,1579.4,1579.3,22.90258428]
[1673991246094,0.04175041,1579.4,1579.3,21.90258428]
[1673991246514,0.04175041,1579.4,1579.3,21.91651688]
[1673991246796,0.04175041,1579.4,1579.3,25.45511224]
[1673991246987,0.04175041,1579.4,1579.3,8.23566817]
[1673991247467,0.04175041,1579.4,1579.3,6.56666817]
[1673991247715,1.27075041,1579.4,1579.3,0.02807281]
[1673991247992,1.27075041,1579.4,1579.3,0.0139326]
[1673991248993,0.04175041,1579.4,1579.3,0.0139326]
[1673991251889,0.04175041,1579.4,1579.3,8.9878426]
[1673991252098,0.04175041,1579.4,1579.3,9.23198281]
[1673991252466,0.04175041,1579.4,1579.3,11.99494109]
[1673991253416,0.04175041,1579.4,1579.3,10.55594109]
[1673991253993,0.04175041,1579.4,1579.3,30.77538516]
[1673991254838,0.04175041,1579.4,1579.3,31.41212689]
[1673991257144,0.04175041,1579.4,1579.3,30.77538516]
[1673991257584,0.04175041,1579.4,1579.3,31.41212689]
[1673991260041,0.04175041,1579.4,1579.3,39.50212689]
[1673991260398,0.04175041,1579.4,1579.3,39.50412689]
[1673991260612,0.04175041,1579.4,1579.3,30.77538516]
[1673991261977,0.04175041,1579.4,1579.3,23.01047516]
[1673991262186,1.27075041,1579.4,1579.3,3.02807281]
[1673991262509,0.04175041,1579.4,1579.3,3.0139326]
[1673991264451,1.27075041,1579.4,1579.3,3.0139326]
[1673991264666,0.04175041,1579.4,1579.3,3.0139326]
[1673991267720,0.04175041,1579.4,1579.3,5.38651588]
[1673991268041,0.04175041,1579.4,1579.3,11.73256609]
[1673991268294,0.04175041,1579.4,1579.3,3.02807281]
[1673991268457,0.04175041,1579.4,1579.3,3.0139326]
[1673991270073,0.04175041,1579.4,1579.3,9.3458426]
[1673991270240,0.04175041,1579.4,1579.3,9.35998281]
[1673991271312,0.04175041,1579.4,1579.3,3.02807281]
[1673991271512,13.93377041,1579.4,1579.3,3.01607281]
[1673991271753,14.02477041,1579.4,1579.3,3.0139326]
[1673991272486,22.39594533,1579.4,1579.3,0.0139326]
[1673991274057,22.39594533,1579.4,1579.3,0.00999356]
[1673991278210,12.79577041,1579.4,1579.3,0.00999356]
[1673991278913,6.46426041,1579.4,1579.3,0.00999356]
[1673991279317,6.46426041,1579.4,1579.3,1.21299356]
[1673991280907,6.46426041,1579.4,1579.3,0.00999356]
[1673991281873,6.46426041,1579.4,1579.3,1.21299356]
[1673991282039,0.13275041,1579.4,1579.3,7.66620292]
[1673991282251,0.04175041,1579.4,1579.3,14.01225313]
[1673991283086,0.04175041,1579.4,1579.3,19.94264313]
[1673991285528,0.04175041,1579.4,1579.3,26.27455313]
[1673991286863,0.04175041,1579.4,1579.3,29.27455313]
[1673991290296,0.04175041,1579.4,1579.3,33.8211772]
[1673991290524,0.04175041,1579.4,1579.3,41.10379152]
[1673991291431,0.04175041,1579.4,1579.3,41.76584678]
[1673991291661,0.04175041,1579.4,1579.3,44.17284576]
[1673991292119,0.04175041,1579.4,1579.3,43.53610403]
[1673991293087,0.04175041,1579.4,1579.3,44.19923752]
[1673991293455,0.04175041,1579.4,1579.3,43.20592501]
[1673991294128,0.04175041,1579.4,1579.3,43.53610403]
[1673991294467,0.04175041,1579.4,1579.3,44.19906709]
[1673991294816,0.04175041,1579.4,1579.3,43.20575458]
[1673991295231,0.04175041,1579.4,1579.3,44.19906709]
[1673991295477,0.04175041,1579.4,1579.3,43.20575458]
[1673991295746,0.04175041,1579.4,1579.3,41.76675458]
[1673991296294,0.04175041,1579.4,1579.3,41.10379152]
[1673991299186,0.03868626,1579.4,1579.3,41.10379152]
[1673991304661,0.03868626,1579.4,1579.3,46.69903529]
[1673991304816,0.03868626,1579.4,1579.3,54.31912647]
[1673991305023,0.03868626,1579.4,1579.3,62.57012647]
[1673991305284,0.03868626,1579.4,1579.3,63.23260909]
[1673991308305,0.03868626,1579.4,1579.3,62.23929658]
[1673991308955,0.03868626,1579.4,1579.3,63.23260909]
[1673991309874,0.03868626,1579.4,1579.3,60.80429658]
[1673991310283,0.03868626,1579.4,1579.3,61.79760909]
[1673991310907,0.0131112,1579.4,1579.3,61.79760909]
[1673991311109,0.0131112,1579.4,1579.3,61.79734714]
[1673991312933,0.0131112,1579.4,1579.3,61.79838421]
[1673991313145,0.0131112,1579.4,1579.3,58.30006643]
[1673991314541,0.0131112,1579.4,1579.3,44.92179152]
[1673991315997,0.0131112,1579.4,1579.3,48.15179152]
[1673991319825,0.0131112,1579.4,1579.3,48.81401219]
[1673991322090,0.0131112,1579.4,1579.3,48.15179152]
[1673991323663,0.0131112,1579.4,1579.3,48.81401219]
[1673991323874,0.0131112,1579.4,1579.3,49.8073247]
[1673991325404,0.0131112,1579.4,1579.3,49.14510403]
[1673991326956,0.0131112,1579.4,1579.3,49.80864686]
[1673991327154,0.0131112,1579.4,1579.3,49.14510403]
[1673991329799,0.0131112,1579.4,1579.3,48.8156941]
[1673991331180,0.0131112,1579.4,1579.3,34.2327841]
[1673991331756,0.0131112,1579.4,1579.3,32.8027841]
[1673991332441,0.0131112,1579.4,1579.3,39.1346941]
[1673991334261,0.010851,1579.4,1579.3,39.1346941]
[1673991341724,0.010851,1579.4,1579.3,40.5646941]
[1673991343375,0.010851,1579.4,1579.3,39.90079152]
[1673991343604,0.010851,1579.4,1579.3,38.47079152]
[1673991344350,0.010851,1579.4,1579.3,39.1346941]
[1673991349992,0.010851,1579.4,1579.3,40.12800661]
[1673991350243,0.010851,1579.4,1579.3,39.46410403]
[1673991350604,0.010851,1579.4,1579.3,40.12805857]
[1673991351369,0.010851,1579.4,1579.3,40.12822166]
[1673991351890,0.010851,1579.4,1579.3,39.13490915]
[1673991352652,0.010851,1579.4,1579.3,40.12821475]
[1673991353534,0.010851,1579.4,1579.3,39.46410403]
[1673991354864,0.010851,1579.4,1579.3,40.12843177]
[1673991355984,0.00778888,1579.4,1579.3,40.12843177]
[1673991356569,0.00778888,1579.4,1579.3,39.46410403]
[1673991357040,0.00778888,1579.4,1579.3,40.12843129]
[1673991357525,0.00778888,1579.4,1579.3,39.46410403]
[1673991363293,0.00778888,1579.4,1579.3,40.12842973]
[1673991363894,0.00778888,1579.4,1579.3,39.46410403]
[1673991370301,0.00778888,1579.4,1579.3,40.78664338]
[1673991370541,0.00778888,1579.4,1579.3,39.79333087]
[1673991371812,0.00778888,1579.4,1579.3,40.99933087]
[1673991375698,0.00778888,1579.4,1579.3,41.99599248]
[1673991375885,0.00778888,1579.4,1579.3,40.99933087]
[1673991377505,0.00778888,1579.4,1579.3,41.99591504]
[1673991377812,0.00778888,1579.4,1579.3,41.76591504]
[1673991378707,0.00778888,1579.4,1579.3,40.44077892]
[1673991379129,0.00778888,1579.4,1579.3,40.67077892]
[1673991379370,0.00778888,1579.4,1579.3,39.46477892]
[1673991379656,0.00778888,1579.4,1579.3,40.1291797]
[1673991380297,0.00778888,1579.4,1579.3,39.46477892]
[1673991384196,0.00778888,1579.4,1579.3,23.56303549]
[1673991384407,1.20278888,1579.4,1579.3,0.42833367]
[1673991384658,1.20278888,1579.4,1579.3,0.18419346]
[1673991385649,7.53429888,1579.4,1579.3,0.18419346]
[1673991385864,9.65815664,1579.4,1579.3,0.18419346]
[1673991386074,9.65815664,1579.4,1579.3,0.00739679]
[1673991386912,22.32117664,1579.4,1579.3,0.00739679]
[1673991387442,22.32828188,1579.4,1579.3,0.00739679]
[1673991388613,23.53428188,1579.4,1579.3,0.00739679]
[1673991393382,24.73628188,1579.4,1579.3,0.00739679]
[1673991393535,29.42578802,1579.4,1579.3,0.00739679]
[1673991394118,24.73628188,1579.4,1579.3,0.00739679]
[1673991394707,23.54128188,1579.4,1579.3,0.00739679]
[1673991403659,22.33928188,1579.4,1579.3,0.00739679]
[1673991406210,12.76180888,1579.4,1579.3,0.00739679]
[1673991406478,0.09505515,1579.4,1579.3,22.11975086]
[1673991406687,0.00405515,1579.4,1579.3,42.29160243]
[1673991406950,0.00405515,1579.4,1579.3,42.83509263]
[1673991407125,0.00405515,1579.4,1579.3,47.85649031]
[1673991407682,0.00405515,1579.4,1579.3,44.35716099]
[1673991409812,0.00405515,1579.4,1579.3,45.56316099]
[1673991411477,0.00405515,1579.4,1579.3,46.55974516]
[1673991412122,0.00405515,1579.4,1579.3,45.56316099]
[1673991414957,0.00405515,1579.4,1579.3,46.76916099]
[1673991415116,0.00405515,1579.4,1579.3,44.8987818]
[1673991416391,0.00405515,1579.4,1579.3,44.26204007]
[1673991416626,0.00405515,1579.4,1579.3,42.51254987]
[1673991416936,0.00405515,1579.4,1579.3,11.954037]
[1673991418945,0.00405515,1579.4,1579.3,0.021537]
[1673991419154,6.33556515,1579.4,1579.3,0.00739679]
[1673991419373,6.42656515,1579.4,1579.3,0.00739679]
[1673991419909,6.43367039,1579.4,1579.3,0.00739679]
[1673991420131,8.4668603,1579.4,1579.3,0.00739679]
[1673991420314,20.29869039,1579.4,1579.3,0.00739679]
[1673991422158,7.63567039,1579.4,1579.3,0.00739679]
[1673991424792,13.96718039,1579.4,1579.3,0.00739679]
[1673991425666,12.76518039,1579.4,1579.3,0.00739679]
[1673991427956,6.43367039,1579.4,1579.3,0.00739679]
[1673991428176,8.4914813,1579.4,1579.3,0.00739679]
[1673991428732,14.8229913,1579.4,1579.3,0.00739679]
[1673991429261,14.8229913,1579.4,1579.3,0.00405509]
[1673991430376,8.4914813,1579.4,1579.3,0.00405509]
[1673991431866,21.1545013,1579.4,1579.3,0.00405509]
[1673991433741,14.8229913,1579.4,1579.3,0.00405509]
[1673991434217,8.48923709,1579.4,1579.3,0.00405509]
[1673991435008,2.15772709,1579.4,1579.3,0.00405509]
[1673991435219,0.00891618,1579.4,1579.3,0.00405509]
[1673991441104,0.00181094,1579.4,1579.3,0.00405509]
[1673991444065,0.00181094,1579.4,1579.3,23.55740916]
[1673991444294,0.00181094,1579.4,1579.3,23.57154937]
[1673991444488,0.00181094,1579.4,1579.3,23.80154937]
[1673991444694,0.00181094,1579.4,1579.3,27.76100331]
[1673991444892,0.00181094,1579.4,1579.3,39.95900331]
[1673991447474,0.00181094,1579.4,1579.3,39.97784723]
[1673991448318,0.00181094,1579.4,1579.3,43.17264064]
[1673991449160,0.00181094,1579.4,1579.3,43.72942307]
[1673991449725,0.00181094,1579.4,1579.3,43.17264064]
[1673991449937,0.00181094,1579.4,1579.3,47.89159099]
[1673991450200,0.00181094,1579.4,1579.3,49.96933272]
[1673991450371,0.00181094,1579.4,1579.3,49.33259099]
[1673991450797,0.00181094,1579.4,1579.3,45.17052255]
[1673991451519,0.00181094,1579.4,1579.3,44.61364064]
[1673991451730,0.00181094,1579.4,1579.3,45.83479966]
[1673991452405,0.00181094,1579.4,1579.3,45.17042047]
[1673991453635,0.00181094,1579.4,1579.3,45.12042047]
[1673991454926,0.00181094,1579.4,1579.3,45.78479966]
[1673991455090,0.00181094,1579.4,1579.3,45.12042047]
[1673991457710,0.00181094,1579.4,1579.3,32.6012767]
[1673991457923,0.00181094,1579.4,1579.3,21.54405021]
[1673991458135,0.00181094,1579.4,1579.3,0.01414021]
[1673991458383,0.00181094,1579.4,1579.2,0.01414021]
[1673991458615,12.66483094,1579.4,1579.2,0.00414021]
[1673991458828,1.26648309,1579.3,1579.0,14.12099021]
[1673991459142,7.60561833,1579.3,1579.0,0.01414021]
[1673991459291,7.69661833,1579.3,1578.9,12.68078021]
[1673991459503,7.69661833,1579.3,1578.9,15.79740428]
[1673991461293,7.69661833,1579.3,1578.9,27.68920428]
[1673991462153,7.69661833,1579.3,1578.9,15.79740428]
[1673991462711,7.69661833,1579.3,1578.9,27.68920428]
[1673991462869,7.69661833,1579.3,1578.9,28.24617556]
[1673991463757,7.69661833,1579.3,1578.9,34.57969556]
[1673991463911,7.69661833,1579.3,1578.9,34.02272428]
[1673991464125,0.76966183,1579.2,1578.9,34.02272428]
[1673991464396,7.69661833,1579.3,1578.9,34.02272428]
[1673991465500,1.36458833,1579.3,1578.9,34.02272428]
[1673991465753,1.27358833,1579.3,1578.9,34.02272428]
[1673991467124,7.60558833,1579.3,1578.9,34.02272428]
[1673991467336,7.69658833,1579.3,1578.9,34.02272428]
[1673991467496,0.76965883,1579.2,1578.9,34.02272428]
[1673991468244,0.002,1579.2,1578.9,34.02072428]
[1673991468478,0.00710524,1579.3,1578.9,34.02272428]
[1673991471716,6.33909524,1579.3,1578.9,34.02272428]
[1673991471933,6.43009524,1579.3,1578.9,34.02272428]
[1673991472821,12.76208524,1579.3,1578.9,27.68920428]
[1673991472991,1.27620852,1579.2,1578.9,27.68920428]
[1673991473450,7.60853852,1579.2,1578.9,24.57258021]
[1673991473769,20.36419852,1579.2,1578.9,0.01414021]
[1673991473915,20.36419852,1579.2,1578.8,9.34778021]
[1673991474126,20.36164173,1579.2,1578.8,9.34778021]
[1673991474496,2.03616417,1579.1,1578.8,9.34778021]
[1673991474655,8.36889417,1579.1,1578.8,9.34778021]
[1673991475028,8.45989417,1579.1,1578.8,9.34778021]
[1673991476073,8.45989417,1579.1,1578.8,6.34778021]
[1673991477220,14.79262417,1579.1,1578.8,0.01414021]
[1673991477433,8.45989417,1579.1,1578.7,40.62402113]
[1673991477609,8.45989417,1579.1,1578.7,48.17448523]
[1673991477610,6.42373,1579.1,1578.7,48.17448523]
[1673991479340,6.42373,1579.1,1578.7,0.01414021]
[1673991479341,0.00710524,1579.0,1578.7,0.01414021]
[1673991479496,6.33352,1578.9,1578.6,15.0876]
[1673991479708,12.75804,1578.9,1578.6,18.77509325]
[1673991480043,0.091,1578.9,1578.6,37.53346538]
[1673991480387,14.33466524,1579.0,1578.6,36.97668875]
[1673991480598,14.33466524,1579.0,1578.6,32.32868428]
[1673991480816,14.33466524,1579.0,1578.6,22.87734021]
[1673991481032,20.66778524,1579.0,1578.6,21.43634021]
[1673991481527,27.00124524,1579.0,1578.6,12.10174021]
[1673991481763,27.00124524,1579.0,1578.6,0.01414021]
[1673991481932,6.33392,1578.8,1578.5,14.33463247]
[1673991482140,12.75884,1578.8,1578.5,0.17725247]
[1673991482384,12.75884,1578.8,1578.5,0.16311226]
[1673991483599,12.75884,1578.8,1578.5,6.49823226]
[1673991483861,12.75884,1578.8,1578.5,6.51237247]
[1673991484178,14.93809545,1578.8,1578.5,6.51237247]
[1673991485198,14.93809545,1578.8,1578.5,0.17725247]
[1673991485199,21.27201545,1578.8,1578.5,0.17725247]
[1673991485534,21.27201545,1578.8,1578.5,0.16311226]
[1673991485928,14.93809545,1578.8,1578.5,0.16311226]
[1673991486141,8.60417545,1578.8,1578.5,0.16311226]
[1673991486418,8.60417545,1578.8,1578.5,6.49821226]
[1673991486720,0.091,1578.8,1578.5,9.62897654]
[1673991486872,7.9944,1579.0,1578.6,4.77662407]
[1673991487085,7.9944,1579.0,1578.7,12.66853]
[1673991487290,7.9944,1579.0,1578.7,12.68267021]
[1673991487291,0.091,1579.0,1578.7,12.68267021]
[1673991487555,21.137572,1579.0,1578.7,0.01414021]
[1673991487776,21.228572,1579.0,1578.5,12.84717247]
[1673991488092,0.00710524,1578.9,1578.5,15.96379654]
[1673991488277,12.67440524,1578.9,1578.5,15.96379654]
[1673991488444,12.76540524,1578.9,1578.5,15.96379654]
[1673991489955,6.43163524,1578.9,1578.5,15.96379654]
[1673991490177,6.43163524,1578.9,1578.5,19.85086819]
[1673991490575,0.09810524,1578.9,1578.5,27.62698819]
[1673991490765,0.00710524,1578.9,1578.5,27.62698819]
[1673991491190,0.00710524,1578.9,1578.5,28.18345127]
[1673991492141,0.00710524,1578.9,1578.6,3.34662407]
[1673991492396,0.00710524,1578.9,1578.7,6.33432]
[1673991492611,0.00710524,1578.9,1578.7,6.34846021]
[1673991495918,29.13923,1579.1,1578.7,6.34846021]
[1673991496124,29.13923,1579.1,1578.7,12.68278021]